Cogmind - Beta 12 @@@ ROGUE MODE // 2023.06.05 @ 01:46:32 Player: snowphil Result: Destroyed by G-34 Mercenary with Small Laser Performance ------------- Evolutions (0) 0 Regions Visited (1) 200 Robots Destroyed (7) 35 Value Destroyed (179) 179 Prototype IDs (0) 0 Alien Tech Used (0) 0 Bonus (0) 0 TOTAL SCORE: 414 Bonus ------- None Cogmind --------- Core Integrity 0/250 Matter 223/300 Energy 158/250 System Corruption 0% Temperature Warning (339) Movement Treading (160) Location -10/Materials Parts ------- > --- POWER (1) -------- Ion Engine > --- PROPULSION (2) --- Improved Treads > --- UTILITY (2) ------ Medium Storage Unit > --- WEAPON (2) ------- Light EM Pulse Cannon Assault Rifle > --- INVENTORY (10) --- Flight Unit Flight Unit Flight Unit Light EM Pulse Cannon Mining Laser Peak State ------------ > --- POWER ------------ Ion Engine > --- PROPULSION ------- Aluminum Leg Aluminum Leg > --- UTILITY ---------- Medium Storage Unit > --- WEAPON ----------- Particle Gun Mining Laser > --- INVENTORY -------- Improved Treads Flight Unit Flight Unit Flight Unit Light EM Pulse Cannon Light EM Pulse Cannon Assault Rifle Assault Rifle [Rating: 8] Favorites ----------- Power Ion Engine Engine Ion Engine Propulsion Aluminum Leg Treads Improved Treads Leg Aluminum Leg Utility Medium Storage Unit Storage Medium Storage Unit Weapon Mining Laser Energy Gun EM Pulse Gun Energy Cannon Light EM Pulse Cannon Ballistic Gun Assault Rifle Special Weapon Mining Laser Build | -11 -10 ------- Run | Jun Mat Slots Evolved . | . . Power . | . . Propulsion . | . . Utility . | . . Weapon . | . . Parts Attached 9 | . 9 Power 1 | . 1 Engine 1 | . 1 Core . | . . Reactor . | . . Propulsion 1 | . 1 Treads 1 | . 1 Leg . | . . Wheel . | . . Hover . | . . Flight . | . . Utility 1 | . 1 Device . | . . Storage 1 | . 1 Processor . | . . Hackware . | . . Protection . | . . Artifact . | . . Weapon 6 | . 6 Energy Gun 1 | . 1 Energy Cannon 2 | . 2 Ballistic Gun 2 | . 2 Ballistic Cannon . | . . Launcher . | . . Special Weapon 1 | . 1 Impact Weapon . | . . Slashing Weapon . | . . Piercing Weapon . | . . Special Melee Weapon . | . . Unidentified Prototypes . | . . Parts Lost 5 | . 5 Power 1 | . 1 Propulsion 2 | . 2 Utility . | . . Weapon 2 | . 2 Highest Loss Streak 5 | . 5 To Critical Strikes . | . . Average Slot Usage (%) 75 | . 75 Engine 14 | . 14 Leg 27 | . 27 Storage 14 | . 14 Energy Gun 5 | . 5 Ballistic Gun 4 | . 4 Special Weapon 8 | . 8 Naked Turns . | . . Heaviest Build 19 | 14 19 Greatest Support 20 | 20 20 Greatest Overweight (x) . | . . Average Overweight (x) . | . . Largest Inventory Capacity 10 | 8 10 Average Capacity 9 | 8 9 Most Carried 10 | 6 10 Average Carried 8 | 6 9 Final Capacity 10 | 8 10 Final Carried 6 | 6 5 Class Distribution -------------------- 100% | Mutant Dominant Class ---------------- Mutant | -10/Materials Resources | -11 -10 ----------- Run | Jun Mat Matter Collected 235 | 200 35 Remotely . | . . Salvage Created 190 | . 190 Parts 12 | . 12 Haulers Intercepted . | . . Recyclers Shooed . | . . Parts Field Recycled . | . . Retrieved Matter . | . . Parts Self-Destructed . | . . Prevented . | . . Kills | -11 -10 ------- Run | Jun Mat Combat Hostiles Destroyed 7 | . 7 Guns 7 | . 7 Classes Destroyed 2 | . 2 Swarmer 3 | . 3 Grunt 4 | . 4 Best Kill Streak 4 | . 4 Combat Bots Only 4 | . 4 Max Kills in Single Turn 1 | . 1 Gunslinging . | . . Exploded . | . . Melee . | . . Uniques/NPCs Destroyed . | . . Combat | -11 -10 -------- Run | Jun Mat Damage Taken 866 | . 866 Core 260 | . 260 Absorbed by Shields . | . . Core Remaining (%) 100 | 100 . Volleys Fired 28 | . 28 Largest 2 | . 2 Hottest 100 | . 100 Shots Fired 41 | . 41 Gun 29 | . 29 Cannon . | . . Launcher . | . . Special 12 | . 12 Kinetic 14 | . 14 Thermal 22 | . 22 Explosive . | . . Electromagnetic 5 | . 5 Robot Hit Streak 26 | . 26 Robot Miss Streak 1 | . 1 Penetration Max . | . . Secondary Targets . | . . Shots Hit Robots 26 | . 26 Core Hits 12 | . 12 Critical Kills . | . . Critical Parts Destroyed . | . . Critical Strikes . | . . Melee Attacks . | . . Impact . | . . Slashing . | . . Piercing . | . . Sneak Attacks . | . . Combat Hostiles . | . . Follow-up Attacks . | . . Damage Inflicted 344 | . 344 Guns 344 | . 344 Cannons . | . . Explosions . | . . Melee . | . . Ramming . | . . Kinetic 146 | . 146 Thermal 150 | . 150 Explosive . | . . Electromagnetic 48 | . 48 Impact . | . . Slashing . | . . Piercing . | . . Highest Corruption . | . . Average Corruption . | . . Corruption Purged . | . . Corruption Blocked . | . . Overload Shots . | . . Overflow Damage . | . . Projectiles . | . . Explosions . | . . Melee . | . . Knockbacks . | . . Impact . | . . Kinetic . | . . Secondary . | . . Self-Inflicted Damage . | . . Shots . | . . Rammed . | . . Targets Rammed . | . . Kicked . | . . Crushed . | . . Highest Temperature 437 | . 437 Average Temperature 101 | . 101 Received Heat Transfer 351 | . 351 Effects 5 | . 5 Shutdowns 2 | . 2 Energy Bleed 1 | . 1 Short Circuit 1 | . 1 Damage (minor) 1 | . 1 Siege Activations . | . . Robots Corrupted . | . . Combat Hostiles . | . . Parts Fried . | . . Impact Corruptions . | . . Robots Melted . | . . Combat Hostiles . | . . Parts Melted 1 | . 1 Heat Transferred 370 | . 370 Parts Sabotaged . | . . Parts Stolen . | . . Parts Stripped . | . . Power Chain Reactions . | . . Missiles Intercepted . | . . Alert | -11 -10 ------- Run | Jun Mat Peak Influence 132 | . 132 Initial . | . . Average 64 | . 66 Maximum Alert Level . | . . Low Security (%) 100 | 100 100 Level 1 . | . . Level 2 . | . . Level 3 . | . . Level 4 . | . . Level 5 . | . . High Security . | . . Max Security . | . . Squads Dispatched 2 | . 2 Investigation . | . . Extermination . | . . Reinforcement 2 | . 2 Assault . | . . Garrison . | . . Intercept . | . . Searches Triggered . | . . Construction Impeded . | . . Haulers Reinforced . | . . Active Scanning Responses . | . . Cargo Convoy Interrupts . | . . Stealth | -11 -10 --------- Run | Jun Mat Distress Signals 1 | . 1 Communications Jammed . | . . Distress Signals . | . . Times Spotted 21 | . 21 Peak Tracking Total 7 | . 7 Tactical Retreats 1 | . 1 Traps | -11 -10 ------- Run | Jun Mat Traps Triggered 1 | . 1 Indirectly . | . . Trap Hack Attempts . | . . Triggered . | . . Disarmed . | . . Reprogrammed . | . . Reused . | . . Traps Extracted . | . . Installed . | . . Triggered . | . . Machines | -11 -10 ---------- Run | Jun Mat Machines Disabled 1 | . 1 Max in Single Turn 1 | . 1 Machines Repaired . | . . Machines Sabotaged . | . . Overloaded Fab Kills . | . . Hacking | -11 -10 --------- Run | Jun Mat Machines Accessed 6 | . 6 Terminals 5 | . 5 Fabricators . | . . Repair Stations . | . . Recycling Units 1 | . 1 Scanalyzers . | . . Garrison Access . | . . Total Hacks 18 | . 18 Successful 8 | . 8 Failed 10 | . 10 Catastrophic 3 | . 3 Database Lockouts . | . . Manual 11 | . 11 Terminals 17 | . 17 Fabricators . | . . Repair Stations . | . . Recycling Units 1 | . 1 Scanalyzers . | . . Garrison Access . | . . Terminal Hacks 5 | . 5 Level Access Points 1 | . 1 Branch Access Points 1 | . 1 Alert Level 1 | . 1 Locate Traps 2 | . 2 Fabricator Hacks . | . . Repair Station Hacks . | . . Recycling Unit Hacks . | . . Scanalyzer . | . . Garrison Access Hacks . | . . Unauthorized Hacks 3 | . 3 Terminals 3 | . 3 Botnet 3 | . 3 Fabricators . | . . Repair Stations . | . . Recycling Units . | . . Scanalyzers . | . . Garrison Access . | . . Data Cores Recovered . | . . Used . | . . Hacking Detections 6 | . 6 Full Trace Events . | . . Feedback Events . | . . Feedback Blocked . | . . Robot Schematics Acquired . | . . Robots Built . | . . Authchips . | . . Time . | . . Total Robot Build Rating . | . . Part Schematics Acquired . | . . Parts Built . | . . Authchips . | . . Time . | . . Total Part Build Rating . | . . Parts Repaired . | . . Time . | . . Parts Recycled . | . . Recycled Matter . | . . Retrieved Matter . | . . Retrieved Components . | . . Parts Scanalyzed . | . . Part Schematics Acquired . | . . Parts Damaged . | . . Bothacking | -11 -10 ------------ Run | Jun Mat Used RIF Installer . | . . Robots Hacked . | . . Non-combat . | . . Combat . | . . Robot Hacks Applied . | . . Relay Couplers Released . | . . Fabnet Peak Effective % . | . . Robots Rewired . | . . Allies Hacked . | . . Hacks Repelled . | . . Allies | -11 -10 -------- Run | Jun Mat Total Allies . | . . Largest Group . | . . Highest-Rated Group . | . . Highest-Rated Ally . | . . Total Orders . | . . Ally Attacks . | . . Total Damage . | . . Kills . | . . Allies Corrupted . | . . Allies Melted . | . . Intel | -11 -10 ------- Run | Jun Mat Robot Analysis Total . | . . Derelict Logs Recovered . | . . Drone Launches . | . . Drone Recoveries . | . . Exploration | -11 -10 ------------- Run | Jun Mat Turns Passed 588 | 10 578 Spaces Moved 382 | 9 373 Core . | . . Treads . | . . Legs 382 | 9 373 Wheels . | . . Hover . | . . Flight . | . . Fastest Speed 120 | 120 120 Average Speed 120 | 120 120 Slowest Speed 120 | 120 120 Overloaded Moves . | . . Propulsion Burnouts . | . . Robots Hopped . | . . Cave-ins Triggered . | . . Exploration Rate (%) 23 | 2 45 Regions Visited 1 Branch Regions . Pre-discovered Areas . | . . Known Exits Taken . | . . Unknown Exits Taken 1 | 1 . Scrap Searched . | . . Spaces Dug 9 | . 9 Terrain Destroyed 9 | . 9 Melee . | . . Projectile 9 | . 9 AOE . | . . Terrain Rammed . | . . Walls Destroyed . | . . Machines Disabled . | . . Actions | -11 -10 --------- Run | Jun Mat Total 448 | 8 440 Wait 14 | . 14 Move 381 | 8 373 Hop . | . . Pick Up 10 | . 10 Fast Attach . | . . Attach 6 | . 6 Detach . | . . Swap 3 | . 3 Drop 6 | . 6 Fire 28 | . 28 Melee . | . . Ram . | . . Kick . | . . Crush . | . . Escape Stasis . | . . Rewire . | . . Trap . | . . Miscellaneous . | . . Route ------- -11/Junkyard -10/Materials (discovered 4 exits: *Mat x3 / *Min) History --------- Turn | Location | Event 1 | -11/Junkyard | Discovered new exit (range 3) 11 | -11/Junkyard | Entered Materials 134 | -10/Materials | Discovered new exit (range 9) 300 | -10/Materials | Build established: Mutant 336 | -10/Materials | Identified exit to Materials 392 | -10/Materials | Identified exit to Mines 569 | -10/Materials | Core integrity fell below 50% 579 | -10/Materials | Core integrity fell below 20% 589 | -10/Materials | Destroyed by G-34 Mercenary with Small Laser Last Messages --------------- 00568_ Aluminum Leg destroyed. 00570_ K-01 Serf collects debris. 00575_ G-47 Trooper heat spikes uncontrollably. 00576_ Overheating: Energy bleed (-25). 00576_ G-47 Trooper heat spikes uncontrollably. 00576_ G-47 Trooper overheating. 00577_ Particle Gun melted. 00577_ G-47 Trooper destroyed. 00577_ K-01 Serf collects debris. 00578_ Overheating: Ion Engine damaged (-20). 00580_ Power failure, Ion Engine shutdown. 00580_ Assault Rifle destroyed. 00580_ K-01 Serf collects debris. 00582_ G-34 Mercenary destroyed. 00583_ Particle Gun broken. 00583_ Overheating: Short circuit. 00583_ K-01 Serf collects debris. 00585_ Broken Particle Gun destroyed. 00586_ K-01 Serf collects debris. 00589_ Power failure, Ion Engine shutdown. Map ----- +----------------------------------------------------+ | ??????# #!! T" #" # ^^ #?? | | ??????# # "" #T # ^^ ##########?? | | ??????# # #" # % #??????????? | | ??????# ######## ######## #??????????? | | ??????# #??????######??????# #??????????? | | ??????# | #??????#####??????## #??????????? | | ??????##########??????# #??????# ^^^#??????????? | | ??????????????????????# #??????## ############ | | ??????????????????????# #???????# ## # | | ????????########??????# #??????## ## # | | ????????#| """ #??????# #??????# #= # | | ???# "Y" #??????# #??????# % # """ # | | # ######## #??????# T%%+ "" """ # | | ????# / ## ##+######### %# "T """ + | | ????# # ## #="" # | | ????# ??# + ########## # | | ????????######### #????????########### | | ????????????????# ##### #??????????????????? | | ????????????????###+####### ##?????????????????? | | ????????????????# #""" #?????????????????? | | ????????????????# """ #" g #?????????????????? | | ????????????????# """ #"! #?????????????????? | | ????????????????# """ #""* > #?????????????????? | | ????????????????# #"!%= #?????????????????? | | ????????????????# #"[k= #?????????????????? | | ????????????????# # @" #?????????????????? | | ????????????????####+####%# ##?????????????????? | | ???????????????????# =; # #???????????? | | ???????????????????# """ %s + #???????????? | | ???????????????????# """ #w # """ ????????????? | | ???????????????????# """ !# #??????????????????? | | ??????????????????## # #??????????????????? | | ??????????????????# "T" # #??????????????????? | | ??????????????????# ###### w#??????????????????? | | ??????????????????####????? k#??????????????????? | | ??????????????????????????? ??????????????????? | | ???????????????????????????? ?????????????????? | | ?????????????????????????????? ?????????????????? | | ?????????????????????????????? ????????????????? | | ???????????????????????????????? ????????????????? | | ???????????????????????????????? ???????????????? | | ????????????????????????????????? ???????????????? | | ?????????????????????????????????????????????????? | | ?????????????????????????????????????????????????? | | ?????????????????????????????????????????????????? | | ?????????????????????????????????????????????????? | | ?????????????????????????????????????????????????? | | ?????????????????????????????????????????????????? | | ?????????????????????????????????????????????????? | | ?????????????????????????????????????????????????? | +----------------------------------------------------+ Best States ------------- Heat Dissipation 25 Energy Generation 10 Energy Capacity 250 Matter Stores 300 Matter Capacity 300 Sight Range 16 Terrain Scan Density 10 Evasion (%) 55 Recoil Reduction 1 Item Schematics ----------------- None Robot Schematics ------------------ None Fabricated ------------ Nothing Alien Tech Used ----------------- None Achievements -------------- None Challenges ------------ None Game ------ Seed MetafiberHoverBuckler Manual? 0 Play Time 00:12:17 Cumulative 138.9 hours Start 2023.06.05 @ 01:19:24 End 2023.06.05 @ 01:46:32 Sessions 1 Manual Loads 0 Difficulty Rogue Special Mode None Game No. 24 Rogue 22 Adventurer 0 Explorer 2 Win Type - Total 3 Types 0/0/0/3/0/0/0/0/0 Lore% 33 Gallery% 46 Achievement% 46 Wizard Run 0 Options --------- ASCII 1 Keyboard 0 Movement Mouse Keybinds 0 Fullscreen 1 Font 18/SmallcapsGlow Map View 70x50 Tactical HUD 1 Map Filters NONE Filters NONE Steam X RUN: b4faca56-03c6-49f0-9516-cab22106c56e